bitfinex-derivatives/quotes_SOLF0:USTF0_20260305
["timestamp","ask_amount","ask_price","bid_price","bid_amount"]
[1772730041146,10.111,88.983,88.944,10.116]
[1772730041441,10.111,88.983,88.94,3.55866083]
[1772730041646,3.55866083,88.98,88.93,3.55866083]
[1772730041945,3.55866083,88.97,88.91,3.55866083]
[1772730042346,10.113,88.964,88.91,13.67766083]
[1772730042642,10.113,88.964,88.91,3.55866083]
[1772730043046,10.113,88.964,88.916,10.119]
[1772730043243,10.114,88.957,88.91,3.55866083]
[1772730043449,3.55866083,88.96,88.91,3.55866083]
[1772730043747,3.55866083,88.95,88.9,3.55866083]
[1772730045446,10.116,88.945,88.9,3.55866083]
[1772730045842,3.55866083,88.94,88.885,10.122]
[1772730046046,10.118,88.928,88.88,3.55866083]
[1772730046447,10.119,88.917,88.871,10.124]
[1772730046742,3.55866083,88.92,88.871,10.124]
[1772730048549,8.48977867,88.96,88.88,3.55866083]
[1772730048749,3.55866083,88.93,88.88,3.55866083]
[1772730049346,3.55866083,88.95,88.9,3.55866083]
[1772730049952,10.115,88.947,88.9,3.55866083]
[1772730050445,3.55866083,88.95,88.9,3.55866083]
[1772730050639,3.55866083,88.95,88.833,27.52356964]
[1772730050640,3.55866083,88.93,88.88,3.55866083]
[1772730051351,10.117,88.929,88.88,3.55866083]
[1772730051551,10.117,88.929,88.87,3.55866083]
[1772730051849,10.117,88.929,88.88,3.55866083]
[1772730053159,10.118,88.922,88.87,3.55866083]
[1772730053461,3.55866083,88.93,88.88,3.55866083]
[1772730054561,13.67566083,88.93,88.88,3.55866083]
[1772730054758,13.67566083,88.93,88.89,3.55866083]
[1772730055455,10.117,88.93,88.89,3.55866083]
[1772730055855,10.116,88.938,88.89,3.55866083]
[1772730056357,3.55866083,88.94,88.89,3.55866083]
[1772730056358,10.117,88.931,88.89,3.55866083]
[1772730056757,3.55866083,88.93,88.881,10.123]
[1772730058259,3.55866083,88.93,88.838,20.256]
[1772730058260,10.117,88.936,88.89,3.55866083]
[1772730058654,3.55866083,88.93,88.88,3.55866083]
[1772730059361,3.55866083,88.94,88.88,13.68166083]
[1772730060360,3.55866083,88.94,88.825,20.64267723]
[1772730060361,3.55866083,88.94,88.89,3.55866083]
[1772730060765,10.48028607,88.99,88.854,20.252]
[1772730060766,3.55866083,88.93,88.88,3.55866083]
[1772730061064,3.55866083,88.93,88.882,10.123]
[1772730061464,3.55866083,88.93,88.88,3.55866083]
[1772730061465,3.55866083,88.92,88.87,3.55866083]
[1772730061666,10.118,88.924,88.87,3.55866083]
[1772730061862,3.55866083,88.93,88.88,3.55866083]
[1772730062260,10.117,88.929,88.883,10.123]
[1772730063765,3.55866083,88.97,88.91,3.55866083]
[1772730064468,3.55866083,88.98,88.93,3.55866083]
[1772730064662,17.62708991,89.023,88.87,157.492]
[1772730064663,3.55866083,88.99,88.94,3.55866083]
[1772730064862,3.55866083,89.0,88.95,3.55866083]
[1772730066366,3.55866083,89.0,88.951,10.115]
[1772730068663,10.108,89.016,88.96,3.55866083]
[1772730068967,3.55866083,89.0,88.95,3.55866083]
[1772730069168,3.55866083,89.01,88.95,3.55866083]
[1772730069469,3.55866083,89.02,88.97,3.55866083]
[1772730069764,3.55866083,89.01,88.95,3.55866083]
[1772730069968,3.55866083,89.0,88.94,3.55866083]
[1772730070374,10.109,88.999,88.951,10.115]
[1772730071165,3.55866083,89.0,88.959,10.114]
[1772730071370,3.55866083,89.0,88.95,3.55866083]
[1772730071562,3.55866083,88.98,88.93,3.55866083]
[1772730071762,3.55866083,88.99,88.93,3.55866083]
[1772730071964,3.55866083,88.96,88.859,20.47003486]
[1772730072170,3.55866083,88.96,88.91,3.55866083]
[1772730073373,17.6071272,89.021,88.899,10.121]
[1772730073374,3.55866083,88.95,88.899,10.121]
[1772730073673,3.55866083,88.93,88.88,3.55866083]
[1772730073865,3.55866083,88.93,88.897,10.121]
[1772730074069,3.55866083,88.94,88.897,10.121]
[1772730074463,10.116,88.939,88.88,3.55866083]
[1772730074866,8.45599126,88.98,88.851,157.526]
[1772730075068,10.114,88.958,88.91,13.67766083]
[1772730075568,10.114,88.958,88.9,3.55866083]
[1772730076073,3.55866083,88.94,88.89,3.55866083]
[1772730076573,10.116,88.939,88.89,13.68066083]
[1772730076770,3.55866083,88.95,88.89,13.68066083]
[1772730077068,10.114,88.958,88.91,13.67766083]
[1772730077572,10.113,88.969,88.92,3.55866083]
[1772730078471,3.55866083,88.96,88.913,10.119]
[1772730078775,20.216,89.013,88.913,10.119]
[1772730078776,3.55866083,88.97,88.913,10.119]
[1772730078972,3.55866083,88.97,88.92,3.55866083]
[1772730080375,10.113,88.969,88.92,3.55866083]
[1772730080771,10.113,88.969,88.92,13.67666083]
[1772730081172,3.55866083,88.97,88.92,3.55866083]
[1772730081669,10.113,88.969,88.92,3.55866083]
[1772730082174,10.112,88.977,88.868,157.497]
[1772730082475,3.55866083,88.97,88.92,3.55866083]
[1772730082677,3.55866083,88.97,88.91,3.55866083]
[1772730083276,10.114,88.962,88.915,10.119]
[1772730083579,3.55866083,88.97,88.92,3.55866083]
[1772730083879,10.113,88.968,88.921,10.118]
[1772730084671,10.113,88.968,88.92,3.55796862]
[1772730085070,10.113,88.968,88.913,10.119]
[1772730085277,10.113,88.968,88.92,3.55796862]
[1772730086780,10.114,88.958,88.92,3.55796862]
[1772730087279,10.115,88.95,88.92,3.55796862]
[1772730087471,10.115,88.95,88.91,3.55796862]
[1772730087872,3.55796862,88.96,88.91,3.55796862]
[1772730089477,10.115,88.95,88.91,3.55796862]
[1772730089875,3.55796862,88.97,88.91,3.55796862]
[1772730091074,3.55796862,88.96,88.91,3.55796862]
[1772730091274,3.55796862,88.98,88.93,3.55796862]
[1772730091474,10.45107703,89.037,88.95,3.55796862]
[1772730091674,3.55796862,89.02,88.97,3.55796862]
[1772730091879,3.55796862,89.03,88.97,3.55796862]
[1772730092080,3.8788428,89.029,88.97,3.55796862]
[1772730092482,10.107,89.025,88.971,3.65085446]
[1772730092683,3.8788428,89.029,88.971,3.65085446]
[1772730092881,3.8788428,89.029,88.951,3.65085446]
[1772730093278,3.8788428,89.013,88.959,10.114]
[1772730093476,3.8788428,89.013,88.96,3.65085446]
[1772730094278,3.8788428,89.029,88.972,3.65085446]
[1772730094682,3.8788428,89.029,88.951,3.65085446]
[1772730094884,10.11,88.999,88.951,3.65085446]
[1772730096276,10.11,88.992,88.951,3.65085446]
[1772730096476,3.8788428,89.006,88.911,3.65085446]
[1772730096883,10.113,88.97,88.911,3.65085446]
[1772730097583,10.112,88.978,88.92,3.65085446]
[1772730098477,10.112,88.978,88.932,10.117]
[1772730099184,10.112,88.978,88.933,3.65085446]
[1772730099585,10.112,88.978,88.936,3.65085446]
[1772730100077,10.113,88.971,88.921,3.65085446]
[1772730100278,3.8788428,88.981,88.925,3.65085446]
[1772730100583,3.8788428,89.009,88.925,3.65085446]
[1772730100784,10.11,88.99,88.942,10.116]
[1772730100978,10.11,88.99,88.943,3.65085446]
[1772730101781,10.112,88.981,88.943,3.65085446]
[1772730102182,3.8788428,88.994,88.926,3.65085446]
[1772730102579,10.111,88.981,88.926,3.65085446]
[1772730102784,3.8788428,88.994,88.926,3.65085446]
[1772730102991,3.8788428,88.994,88.944,3.65085446]
[1772730103486,10.11,88.998,88.944,3.65085446]
[1772730104088,10.11,88.994,88.946,10.115]
[1772730105188,10.111,88.987,88.944,3.65085446]
[1772730105388,3.8788428,88.997,88.944,3.65085446]
[1772730106381,3.8788428,89.019,88.953,3.65085446]
[1772730108289,3.8788428,89.008,88.953,3.65085446]
[1772730109486,3.8788428,89.008,88.964,10.113]
[1772730109788,3.8788428,89.006,88.953,3.65085446]
[1772730109987,3.8788428,89.006,88.956,10.114]
[1772730110383,3.8788428,89.006,88.953,3.65085446]
[1772730110785,3.8788428,89.003,88.953,3.65085446]
[1772730112391,3.8788428,89.022,88.953,3.65085446]
[1772730112594,3.8788428,89.022,88.98,3.55327421]
[1772730113593,3.8788428,89.022,88.98,7.20412867]
[1772730114388,3.8788428,89.022,88.977,10.112]
[1772730115094,3.55327421,89.02,88.977,10.112]
[1772730115296,3.8788428,89.022,88.977,10.112]
[1772730115496,10.107,89.02,88.977,10.112]
[1772730115692,3.55327421,89.02,88.97,13.66627421]
[1772730115992,3.55327421,89.01,88.965,3.65085446]
[1772730116196,3.8788428,89.009,88.96,3.55327421]
[1772730116493,3.8788428,89.009,88.95,3.65085446]
[1772730116797,3.8788428,88.989,88.94,3.55327421]
[1772730117000,10.113,88.969,88.93,3.55327421]
[1772730117300,3.8788428,88.979,88.93,3.55327421]
[1772730117597,10.112,88.977,88.932,10.117]
[1772730119192,10.112,88.977,88.932,3.97714905]
[1772730119396,10.113,88.969,88.932,3.97714905]
[1772730120103,10.113,88.969,88.911,3.97714905]
[1772730120405,10.45669275,89.022,88.86,256.36596836]
[1772730120406,3.78981998,88.995,88.935,3.97714905]
[1772730121400,10.111,88.988,88.946,10.115]
[1772730122806,3.78981998,88.979,88.911,3.97714905]
[1772730123399,3.78981998,88.979,88.936,10.117]
[1772730123906,3.78981998,88.994,88.926,3.97714905]
[1772730124507,3.78981998,89.01,88.931,3.97714905]
[1772730126110,3.78981998,89.01,88.952,3.97714905]
[1772730126910,3.78981998,89.01,88.969,10.113]
[1772730127315,3.78981998,89.01,88.952,3.97714905]
[1772730127714,3.78981998,89.01,88.969,10.113]
[1772730128606,3.78981998,89.01,88.952,3.97714905]
[1772730128607,3.78981998,89.01,88.975,10.112]
[1772730129709,3.78981998,89.01,88.967,10.113]
[1772730129915,3.78981998,89.01,88.952,3.97714905]
[1772730131512,3.78981998,89.01,88.974,10.112]
[1772730131707,3.78981998,89.01,88.952,3.97714905]
[1772730132414,3.78981998,89.01,88.966,10.113]
[1772730133220,10.109,89.007,88.966,10.113]
[1772730134119,3.78981998,89.006,88.966,10.113]
[1772730134612,3.78981998,89.006,88.957,10.114]
[1772730135015,10.109,89.004,88.952,3.97714905]
[1772730135215,3.78981998,89.006,88.964,10.113]
[1772730135416,3.78981998,89.035,88.965,3.97714905]
[1772730135717,3.78981998,89.022,88.972,10.112]
[1772730136216,3.78981998,89.022,88.965,3.97714905]
[1772730136217,3.78981998,89.022,88.978,10.112]
[1772730136618,3.78981998,89.022,88.965,3.97714905]
[1772730137014,3.78981998,89.038,88.992,10.11]
[1772730137920,3.78981998,89.038,88.982,3.97714905]
[1772730137921,3.78981998,89.03,88.983,10.111]
[1772730138313,3.78981998,89.03,88.967,3.97714905]
[1772730138615,3.78981998,89.029,88.981,10.111]
[1772730138820,3.78981998,89.029,88.97,3.55350144]
[1772730139020,3.55350144,89.02,88.97,3.55350144]
[1772730140021,3.55350144,89.02,88.971,3.97714905]
[1772730140222,10.107,89.022,88.98,10.112]
[1772730141021,10.107,89.022,88.983,10.111]
[1772730141418,10.107,89.022,88.981,3.97714905]
[1772730141817,3.78981998,89.019,88.964,3.97714905]
[1772730142220,3.55350144,89.01,88.95,3.55350144]
[1772730142423,3.78981998,88.999,88.95,3.55350144]
[1772730142716,3.78981998,88.999,88.951,3.97714905]
[1772730143116,3.78981998,89.015,88.97,3.55350144]
[1772730143324,3.78981998,89.015,88.971,3.97714905]
[1772730144420,3.78981998,89.015,88.977,10.112]
[1772730144620,10.107,89.021,88.977,10.112]
[1772730145126,10.107,89.021,88.982,10.111]
[1772730145424,10.107,89.021,88.98,3.55335963]
[1772730145624,10.107,89.021,88.971,3.97714905]
[1772730145826,3.55335963,89.03,88.971,3.97714905]
[1772730145827,10.108,89.014,88.975,10.112]
[1772730146925,10.108,89.014,88.971,3.97714905]
[1772730148126,10.107,89.021,88.98,3.55335963]
[1772730149326,3.78981998,89.029,88.98,3.55335963]
[1772730149823,3.78981998,89.029,88.974,10.112]
[1772730150418,10.107,89.02,88.98,13.66535963]
[1772730151223,3.78981998,89.029,88.98,3.55335963]
[1772730151528,3.78981998,89.029,88.981,3.80914748]
[1772730151728,3.75734139,89.019,88.97,3.55335963]
[1772730151928,10.108,89.016,88.97,3.55335963]
[1772730152325,10.106,89.029,88.99,3.55335963]
[1772730152525,10.106,89.029,88.986,10.111]
[1772730152726,3.75734139,89.029,88.986,10.111]
[1772730152925,10.107,89.023,88.981,3.80914748]
[1772730154123,3.75734139,89.029,88.981,3.80914748]
[1772730154524,3.75734139,89.043,88.991,3.80914748]
[1772730154729,3.75734139,89.043,89.0,3.55335963]
[1772730154929,3.75734139,89.043,88.999,10.109]
[1772730155126,3.75734139,89.043,89.004,10.109]
[1772730155928,3.55335963,89.05,89.0,3.55335963]
[1772730156129,3.75734139,89.071,89.04,3.55335963]
[1772730157128,3.75734139,89.1,89.041,3.80914748]
[1772730157434,3.75734139,89.099,89.05,3.55335963]
[1772730158030,10.099,89.095,89.05,3.55335963]
[1772730158233,3.75734139,89.099,89.06,3.55335963]
[1772730158534,3.55335963,89.11,89.061,10.102]
[1772730158929,3.75734139,89.112,89.07,3.55335963]
[1772730159334,10.096,89.118,89.071,3.80914748]
[1772730159733,3.75734139,89.117,89.071,3.80914748]
[1772730160332,3.55335963,89.11,89.06,3.55335963]
[1772730160527,3.75734139,89.109,89.013,3.80914748]
[1772730160728,3.55335963,89.09,89.041,3.80914748]
[1772730160930,10.098,89.105,89.051,13.91214748]
[1772730161126,3.55335963,89.12,89.07,3.55335963]
[1772730162336,3.75734139,89.122,89.07,3.80914748]
[1772730162636,10.097,89.11,89.07,7.36250711]
[1772730163135,10.097,89.11,89.07,3.80914748]
[1772730163337,13.65035963,89.11,89.06,3.55335963]
[1772730163538,10.098,89.102,89.06,3.55335963]
[1772730164932,10.099,89.093,89.05,3.55335963]
[1772730165134,3.55335963,89.1,89.05,3.55335963]
[1772730165334,3.75734139,89.102,89.05,3.55335963]
[1772730165637,10.099,89.091,89.05,3.55335963]
[1772730166729,3.75734139,89.102,89.05,3.80914748]
[1772730166936,10.098,89.099,89.05,7.36250711]
[1772730167233,10.098,89.099,89.06,3.55335963]
[1772730167639,10.098,89.099,89.06,7.36250711]
[1772730167839,10.097,89.109,89.061,3.80914748]
[1772730168435,10.098,89.102,89.061,3.80914748]
[1772730168636,10.098,89.102,89.07,3.55335963]
[1772730169437,10.098,89.102,89.06,3.55335963]
[1772730169935,3.55335963,89.11,89.061,10.102]
[1772730170238,3.55335963,89.11,89.062,3.80914748]
[1772730170433,10.096,89.117,89.075,3.80914748]
[1772730170638,3.75734139,89.109,89.06,3.55335963]
[1772730170937,3.75734139,89.109,89.061,10.102]
[1772730171241,3.55335963,89.12,89.07,3.55335963]
[1772730171737,3.75734139,89.119,89.07,3.55335963]
[1772730172037,3.75734139,89.109,89.06,3.55335963]
[1772730172235,3.75734139,89.109,89.05,3.55335963]
[1772730172838,3.55335963,89.1,89.05,3.55335963]
[1772730173139,3.75734139,89.109,89.056,10.103]
[1772730173337,3.75734139,89.109,89.06,3.55335963]
[1772730174131,3.55335963,89.12,89.061,3.80914748]
[1772730174328,10.097,89.111,89.063,3.80914748]
[1772730174531,10.097,89.111,89.07,3.55335963]
[1772730175135,10.097,89.111,89.071,3.80914748]
[1772730175537,10.097,89.111,89.07,3.55335963]
[1772730175840,10.097,89.111,89.065,10.102]
[1772730176941,10.097,89.111,89.068,10.102]
[1772730177141,10.097,89.111,89.07,3.55335963]
[1772730177342,10.097,89.111,89.071,3.80914748]
[1772730177842,10.097,89.111,89.073,10.101]
[1772730178039,10.098,89.104,89.06,3.55335963]
[1772730178438,3.87982016,89.104,89.058,10.103]
[1772730178741,3.87982016,89.104,89.06,3.55335963]
[1772730178940,3.55335963,89.1,89.056,3.80914748]
[1772730179136,3.87982016,89.104,89.057,3.78880705]
[1772730179641,3.87982016,89.104,89.06,3.55335963]
[1772730180033,3.87982016,89.104,89.06,7.34216668]
[1772730180234,3.87982016,89.119,89.061,3.78880705]
[1772730180743,20.187,89.144,89.0,157.263]
[1772730180744,3.55335963,89.13,89.071,3.78880705]
[1772730180935,3.87982016,89.129,89.071,3.78880705]
[1772730181140,3.87982016,89.129,89.08,3.55335963]
[1772730181441,10.096,89.118,89.08,3.55335963]
[1772730181741,10.096,89.118,89.071,3.78880705]
[1772730181943,10.096,89.118,89.081,10.1]
[1772730182244,3.87982016,89.148,89.101,3.78880705]
[1772730183144,3.87982016,89.148,89.11,3.55335963]
[1772730183345,3.87982016,89.139,89.09,3.55335963]
[1772730183545,3.87982016,89.139,89.1,3.55335963]
[1772730183746,3.55335963,89.16,89.101,3.78880705]
[1772730184147,3.55335963,89.16,89.11,3.55335963]
[1772730184347,10.092,89.152,89.111,3.78880705]
[1772730185042,10.093,89.145,89.111,3.78880705]
[1772730185846,3.55335963,89.14,89.091,3.78880705]
[1772730186043,3.87982016,89.159,89.11,3.55335963]
[1772730186440,10.092,89.153,89.11,3.55335963]
[1772730186847,3.87982016,89.159,89.111,3.78880705]
[1772730187148,3.55335963,89.17,89.111,3.78880705]
[1772730187348,10.091,89.159,89.112,13.88580705]
[1772730187544,3.55335963,89.16,89.112,3.78880705]
[1772730188050,17.52417979,89.16,89.113,3.78880705]
[1772730190046,17.52417979,89.16,89.113,13.88480705]
[1772730190252,17.52417979,89.16,89.114,3.78880705]
[1772730190451,3.87982016,89.167,89.12,3.55335963]
[1772730190747,3.87982016,89.167,89.11,3.55335963]
[1772730190949,3.55335963,89.15,89.106,3.78880705]
[1772730191149,3.87982016,89.159,89.111,3.78880705]
[1772730191649,9.18387626,89.202,89.056,20.206]
[1772730191650,10.45669275,89.264,89.15,3.55335963]
[1772730191853,10.45669275,89.264,89.141,3.78880705]
[1772730191854,3.87982016,89.229,89.19,3.55335963]
[1772730192051,3.87982016,89.225,89.159,10.091]
[1772730192253,3.87982016,89.219,89.151,3.78880705]
[1772730192454,3.87982016,89.199,89.151,3.78880705]
[1772730192645,3.55335963,89.19,89.151,3.78880705]
[1772730192844,3.55335963,89.19,89.14,3.55335963]
[1772730193255,3.87982016,89.198,89.144,10.093]
[1772730193451,3.87982016,89.215,89.151,3.78880705]
[1772730193650,3.55335963,89.21,89.16,7.34216668]
[1772730194254,10.086,89.206,89.16,7.34216668]
[1772730194452,3.55335963,89.2,89.16,3.78880705]
[1772730194853,3.55335963,89.2,89.14,3.55335963]
[1772730195055,3.55335963,89.2,89.15,3.55335963]
[1772730195657,3.55335963,89.2,89.141,3.78880705]
[1772730195853,3.55335963,89.19,89.141,3.78880705]
[1772730196155,10.087,89.195,89.15,3.55335963]
[1772730196353,7.43317979,89.2,89.15,7.34216668]
[1772730196753,3.55335963,89.18,89.13,3.78880705]
[1772730197152,10.088,89.187,89.13,7.34216668]
[1772730197457,3.87982016,89.189,89.133,3.78880705]
[1772730197752,10.45669275,89.268,89.077,157.127]
[1772730197753,3.55335963,89.2,89.151,3.78880705]
[1772730197952,3.87982016,89.205,89.16,3.55335963]
[1772730198157,3.55335963,89.21,89.161,3.78880705]
[1772730198459,3.87982016,89.222,89.18,3.55335963]
[1772730198652,10.082,89.238,89.18,7.34216668]
[1772730198858,3.55335963,89.23,89.18,7.34216668]
[1772730199257,10.082,89.238,89.18,7.34216668]
[1772730199458,10.083,89.233,89.18,7.34216668]
[1772730199659,3.55335963,89.23,89.18,7.34216668]
[1772730199853,3.55335963,89.23,89.181,3.78880705]
[1772730200057,3.87982016,89.26,89.2,3.55335963]
[1772730200356,3.87982016,89.323,89.24,3.55335963]
[1772730200556,17.00272764,89.324,89.241,3.78880705]
[1772730200557,1.95001681,89.303,89.241,3.78880705]
[1772730200760,3.87982016,89.323,89.241,3.78880705]
[1772730200965,3.87982016,89.305,89.241,3.78880705]
[1772730201360,3.87982016,89.305,89.211,3.78880705]
[1772730201658,10.078,89.281,89.211,3.78880705]
[1772730202052,3.87982016,89.305,89.211,3.78880705]
[1772730202251,3.87982016,89.305,89.214,3.78880705]
[1772730202455,17.00272764,89.324,89.214,3.78880705]
[1772730202456,3.87982016,89.289,89.214,3.78880705]
[1772730202852,3.87982016,89.271,89.214,3.78880705]
[1772730203052,3.87982016,89.294,89.214,3.78880705]
[1772730203256,3.87982016,89.323,89.231,3.78880705]
[1772730203556,3.87982016,89.323,89.23,9.46073527]
[1772730203557,3.87982016,89.323,89.251,3.78880705]
[1772730203953,3.87982016,89.32,89.251,3.78880705]
[1772730204653,10.074,89.313,89.251,3.78880705]
[1772730205256,3.87982016,89.32,89.253,3.78880705]
[1772730205561,17.00272764,89.324,89.253,3.78880705]
[1772730205562,3.87982016,89.317,89.253,3.78880705]
[1772730206164,3.87982016,89.309,89.229,3.78880705]
[1772730206761,3.87982016,89.299,89.212,3.78880705]
[1772730207155,10.077,89.285,89.226,10.084]
[1772730207357,3.85987033,89.318,89.227,3.96973134]
[1772730207565,3.85987033,89.318,89.241,3.96973134]
[1772730207755,3.85987033,89.318,89.257,10.08]
[1772730207963,3.85987033,89.318,89.241,3.96973134]
[1772730208660,3.85987033,89.318,89.268,10.079]
[1772730208856,3.85987033,89.318,89.26,3.8877918]
[1772730209862,156.499,89.435,89.29,9.45588629]
[1772730210061,156.458,89.459,89.311,3.8877918]
[1772730210260,1.9475777,89.414,89.331,3.8877918]
[1772730210462,3.96693389,89.413,89.331,3.8877918]
[1772730210674,3.96693389,89.413,89.337,3.8877918]
[1772730210966,3.96693389,89.413,89.262,20.16]
[1772730210967,3.96693389,89.389,89.317,3.8877918]
[1772730211168,3.96693389,89.381,89.317,3.8877918]
[1772730211359,3.96693389,89.422,89.317,3.8877918]
[1772730211562,3.96693389,89.399,89.317,3.8877918]
[1772730211760,1.94724532,89.423,89.317,3.8877918]
[1772730211761,3.96693389,89.379,89.317,3.8877918]
[1772730212460,3.96693389,89.379,89.29,9.45588629]
[1772730212461,3.96693389,89.379,89.291,3.8877918]
[1772730212664,3.96693389,89.401,89.291,3.8877918]
[1772730212869,3.96693389,89.379,89.293,3.8877918]
[1772730214164,3.96693389,89.379,89.309,3.8877918]
[1772730214367,3.96693389,89.379,89.311,3.8877918]
[1772730214863,3.96693389,89.379,89.29,9.45588629]
[1772730215064,3.96693389,89.379,89.294,3.8877918]
[1772730215466,3.96693389,89.406,89.331,3.8877918]
[1772730215968,3.96693389,89.406,89.333,3.8877918]
[1772730217066,3.96693389,89.429,89.333,3.8877918]
[1772730217262,10.061,89.428,89.352,3.8877918]
[1772730217669,14.02793389,89.428,89.352,3.8877918]
[1772730217960,10.062,89.417,89.352,3.8877918]
[1772730218175,3.96693389,89.416,89.34,9.45588629]
[1772730218365,3.96693389,89.416,89.341,3.8877918]
[1772730218560,10.063,89.415,89.342,3.8877918]
[1772730218965,3.96693389,89.416,89.342,3.8877918]
[1772730219361,3.96693389,89.389,89.32,3.8877918]
[1772730220568,156.446,89.465,89.256,156.811]
[1772730220569,3.96693389,89.419,89.331,3.8877918]
[1772730221069,10.063,89.411,89.331,3.8877918]
[1772730221662,3.96693389,89.419,89.331,3.8877918]
[1772730221862,10.064,89.402,89.341,3.8877918]
[1772730222269,10.064,89.402,89.342,3.8877918]
[1772730222664,10.065,89.392,89.342,3.8877918]
[1772730223073,3.96693389,89.419,89.342,3.8877918]
[1772730223474,10.065,89.393,89.342,3.8877918]
[1772730224176,10.065,89.393,89.33,9.45588629]
[1772730224369,10.065,89.393,89.34,10.071]
[1772730224570,9.45588629,89.43,89.33,9.45588629]
[1772730225473,10.063,89.413,89.35,10.07]
[1772730225678,9.45588629,89.43,89.33,9.45588629]
[1772730226084,9.45588629,89.43,89.341,10.071]
[1772730226085,10.065,89.395,89.341,10.071]
[1772730226285,10.065,89.395,89.33,9.45588629]
[1772730226676,10.065,89.395,89.247,156.828]
[1772730226677,9.45588629,89.39,89.28,9.45588629]
[1772730226882,9.45588629,89.39,89.213,156.887]
[1772730227083,9.45588629,89.35,89.26,9.45588629]
[1772730227284,4.45588629,89.35,89.278,10.078]
[1772730227985,20.132,89.385,89.286,10.077]
[1772730228289,9.45588629,89.34,89.25,9.45588629]
[1772730228984,156.538,89.413,89.27,9.45588629]
[1772730229191,10.069,89.356,89.295,10.076]
[1772730229488,9.45588629,89.37,89.27,9.45588629]
[1772730230082,9.45588629,89.37,89.312,10.074]
[1772730230287,9.45588629,89.39,89.29,9.45588629]
[1772730230483,11.2,89.458,89.29,9.45588629]
[1772730230484,9.45588629,89.46,89.33,9.45588629]
[1772730230688,9.45588629,89.43,89.33,9.45588629]
[1772730230889,9.45588629,89.43,89.302,20.151]
[1772730231089,9.45588629,89.46,89.33,9.45588629]
[1772730231392,9.45588629,89.43,89.33,9.45588629]
[1772730231793,10.064,89.404,89.33,9.45588629]
[1772730232895,9.45588629,89.46,89.3,9.45588629]
[1772730232896,9.45588629,89.39,89.3,9.45588629]
[1772730233194,9.45588629,89.39,89.251,156.82]
[1772730233195,9.45588629,89.39,89.29,9.45588629]
[1772730233794,9.45588629,89.39,89.306,10.075]
[1772730234394,9.45588629,89.39,89.315,10.074]
[1772730234696,9.45588629,89.39,89.255,156.813]
[1772730234697,9.45588629,89.39,89.3,9.45588629]
[1772730235094,10.067,89.375,89.313,10.074]
[1772730235795,10.068,89.367,89.313,10.074]
[1772730235991,9.45588629,89.39,89.304,10.075]
[1772730236698,10.069,89.358,89.304,10.075]
[1772730237396,9.45588629,89.39,89.317,10.073]
[1772730238393,10.068,89.367,89.317,10.073]
[1772730238592,10.068,89.367,89.308,10.074]
[1772730238796,9.45588629,89.39,89.308,10.074]
[1772730239796,9.45588629,89.37,89.28,9.45588629]
[1772730240294,19.52388629,89.37,89.28,9.45588629]
[1772730240495,10.068,89.37,89.28,9.45588629]
[1772730240997,9.45588629,89.39,89.315,10.074]
[1772730241391,9.45588629,89.39,89.29,9.45588629]
[1772730241801,9.45588629,89.39,89.31,9.45588629]
[1772730242003,9.45588629,89.41,89.31,9.45588629]
[1772730242294,9.45588629,89.39,89.29,9.45588629]
[1772730242496,9.45588629,89.37,89.28,9.45588629]
[1772730242800,9.45588629,89.39,89.28,9.45588629]
[1772730243002,10.069,89.353,89.28,9.45588629]
[1772730243297,9.45588629,89.37,89.28,9.45588629]
[1772730243499,10.071,89.337,89.28,9.45588629]
[1772730243801,9.45588629,89.37,89.28,9.45588629]
[1772730244098,10.07,89.346,89.28,9.45588629]
[1772730244496,10.07,89.346,89.251,20.162]
[1772730244497,9.45588629,89.37,89.251,20.162]
[1772730244698,10.072,89.331,89.284,10.077]
[1772730245100,10.072,89.331,89.27,9.45588629]
[1772730245595,10.073,89.322,89.276,10.078]
[1772730245795,9.45588629,89.35,89.25,9.45588629]
[1772730246604,10.073,89.322,89.25,9.45588629]
[1772730246801,9.45588629,89.35,89.25,9.45588629]
[1772730247002,9.45588629,89.35,89.27,9.45588629]
[1772730248303,10.073,89.323,89.273,10.078]
[1772730249100,10.073,89.323,89.28,10.078]
[1772730249299,10.073,89.323,89.23,62.0]